bitfinex/quotes_SOLUSD_20220113
["timestamp","ask_amount","ask_price","bid_price","bid_amount"]
[1642089142126,32.8901,152.1,151.95,6.0]
[1642089142327,32.8901,152.1,151.94,79.5451]
[1642089142328,2.63,152.09,151.94,79.5451]
[1642089142528,18.16557627,152.08,151.95,1.49631202]
[1642089142728,2.63,152.07,151.93,13.87972597]
[1642089142928,2.63,152.07,151.93,29.59512597]
[1642089143129,2.88,152.07,151.93,29.59512597]
[1642089143328,8.88,152.07,151.93,21.77512597]
[1642089143529,2.88,152.07,151.93,21.77512597]
[1642089143729,2.88,152.07,151.93,7.8954]
[1642089143928,9.14,152.07,151.93,7.8954]
[1642089144129,9.8684,152.05,151.93,7.8954]
[1642089144330,2.63,152.1,151.94,11.13961299]
[1642089144532,51.9465,152.11,151.98,8.8795]
[1642089144731,76.4897,152.12,151.98,8.8795]
[1642089144929,76.4897,152.12,151.98,9.1295]
[1642089145137,76.4897,152.12,151.98,21.75038617]
[1642089145329,91.65040067,152.12,151.99,15.07188592]
[1642089145532,101.51390067,152.12,152.02,8.8772]
[1642089145729,25.02420067,152.12,152.02,10.62014683]
[1642089146130,25.02420067,152.12,152.02,8.8772]
[1642089146330,25.02420067,152.12,151.99,0.26]
[1642089146531,2.63,152.11,151.98,8.8794]
[1642089146731,9.8672,152.06,151.95,7.82]
[1642089147032,9.8672,152.06,151.93,11.12819575]
[1642089147033,26.61870009,152.06,151.94,25.42285517]
[1642089147232,26.61870009,152.06,151.94,14.28324218]
[1642089147437,26.86870009,152.06,151.94,14.28324218]
[1642089147832,26.86870009,152.06,151.95,8.8812]
[1642089149334,26.86870009,152.06,151.93,8.8826]
[1642089149537,9.8713,152.0,151.89,7.82]
[1642089149738,9.8713,152.0,151.86,24.5861]
[1642089149739,77.85964817,151.99,151.87,7.82]
[1642089149934,14.21964817,151.99,151.87,7.82]
[1642089150135,14.46964817,151.99,151.87,7.82]
[1642089150337,14.46964817,151.99,151.89,8.8848]
[1642089151136,63.64,151.98,151.89,8.8848]
[1642089151337,70.834,151.98,151.86,7.47206433]
[1642089151540,10.452,151.97,151.78,12.46835627]
[1642089151737,16.19331823,151.96,151.79,19.11411221]
[1642089151937,2.633,151.95,151.79,19.11411221]
[1642089152140,2.633,151.95,151.79,9.30161221]
[1642089152337,9.8765,151.92,151.79,9.30161221]
[1642089152539,13.84690708,151.91,151.82,8.8894]
[1642089152839,13.84690708,151.91,151.78,7.47491148]
[1642089153039,14.09690708,151.91,151.78,7.47491148]
[1642089153439,23.97370708,151.91,151.78,7.47491148]
[1642089153939,23.97370708,151.91,151.78,2.9629166]
[1642089154138,29.97370708,151.91,151.75,7.82]
[1642089154342,2.634,151.9,151.78,8.891]
[1642089154642,9.8791,151.88,151.73,7.82]
[1642089154839,9.8791,151.88,151.73,7.32]
[1642089155045,8.634,151.9,151.74,11.12819575]
[1642089155244,8.634,151.9,151.75,20.02311339]
[1642089155245,6.0,151.9,151.75,20.02311339]
[1642089155445,79.9861,151.92,151.75,20.02311339]
[1642089155647,9.8764,151.92,151.77,8.892]
[1642089155846,9.8764,151.92,151.77,16.712]
[1642089156145,9.8764,151.92,151.78,11.12819575]
[1642089156348,16.73303685,151.96,151.79,76.07171936]
[1642089156546,16.73303685,151.96,151.79,76.58171936]
[1642089156747,16.73303685,151.96,151.81,8.8893]
[1642089156947,16.73303685,151.96,151.82,12.20311339]
[1642089157546,17.24303685,151.96,151.82,12.20311339]
[1642089157745,23.24303685,151.96,151.82,12.20311339]
[1642089158145,9.875,151.94,151.83,8.8888]
[1642089158346,9.875,151.94,151.8,3.7117392]
[1642089158547,2.633,151.93,151.8,3.7117392]
[1642089158970,8.883,151.93,151.77,7.82]
[1642089159170,15.30461121,151.92,151.78,14.22524183]
[1642089159370,2.634,151.91,151.78,14.22524183]
[1642089159570,2.884,151.91,151.78,14.22524183]
[1642089159773,2.634,151.91,151.8,63.64]
[1642089159971,2.634,151.96,151.79,8.891]
[1642089160372,8.634,151.96,151.79,8.891]
[1642089160772,9.8753,151.93,151.79,8.891]
[1642089160975,63.64,151.9,151.79,8.891]
[1642089161172,16.10982561,151.91,151.79,8.891]
[1642089161373,0.25,151.9,151.79,8.891]
[1642089161774,10.1271,151.9,151.79,8.891]
[1642089162377,0.25,151.9,151.79,8.891]
[1642089162574,2.634,151.92,151.79,8.891]
[1642089162773,13.92390925,151.93,151.79,8.891]
[1642089163376,2.634,151.95,151.79,8.891]
[1642089163377,2.634,151.95,151.79,14.891]
[1642089163576,2.633,151.96,151.8,7.82]
[1642089163776,2.633,151.98,151.88,8.8858]
[1642089163977,2.632,152.01,151.88,8.8858]
[1642089164177,155.3454,152.02,151.88,8.8858]
[1642089164384,14.09010196,152.01,151.89,2.58959092]
[1642089164578,2.632,152.0,151.89,2.58959092]
[1642089164980,16.72210196,152.01,151.89,2.58959092]
[1642089165177,82.3335,152.02,151.89,2.58959092]
[1642089165477,79.7015,152.02,151.89,2.58959092]
[1642089165984,79.7015,152.02,151.89,2.84959092]
[1642089166178,89.5708,152.02,151.92,13.31783345]
[1642089166377,9.8693,152.02,151.92,13.31783345]
[1642089166577,9.8693,152.02,151.92,19.57783345]
[1642089166982,2.632,152.05,151.92,19.57783345]
[1642089167378,20.96054152,152.07,151.92,19.57783345]
[1642089167583,2.63,152.07,151.93,8.8822]
[1642089167778,79.4862,152.09,151.93,16.7022]
[1642089167979,2.63,152.11,151.93,24.45174874]
[1642089168179,2.63,152.13,151.94,1.48954874]
[1642089168381,66.27,152.13,151.95,7.82]
[1642089168581,27.24075489,152.12,152.01,8.8777]
[1642089168781,9.8635,152.12,152.01,22.19553345]
[1642089168982,9.8635,152.12,152.01,22.45553345]
[1642089169182,2.63,152.13,152.01,22.45553345]
[1642089169583,2.63,152.13,152.01,23.94508219]
[1642089169782,2.63,152.13,152.02,7.82]
[1642089169983,459.48360022,152.15,152.02,8.08]
[1642089170193,459.48360022,152.15,152.07,8.8741]
[1642089170388,2.629,152.14,152.07,8.8741]
[1642089170583,2.629,152.17,152.07,8.8741]
[1642089170984,2.629,152.17,152.08,13.31783345]
[1642089171484,2.629,152.17,152.08,22.45143345]
[1642089171684,2.629,152.22,152.08,23.94098219]
[1642089171887,2.629,152.22,152.09,7.82]
[1642089172187,29.00589553,152.24,152.1,29.5662]
[1642089172385,2.628,152.23,152.1,7.82]
[1642089172788,2.628,152.23,152.04,1.48954874]
[1642089172986,1.64999521,152.22,152.05,7.82]
[1642089173187,2.629,152.21,152.05,7.82]
[1642089173386,27.91171024,152.2,152.05,7.82]
[1642089173589,27.91171024,152.2,152.01,7.82]
[1642089173590,2.629,152.19,152.01,7.82]
[1642089173887,19.58599521,152.19,151.99,7.82]
[1642089174095,72.1936,152.18,151.99,7.82]
[1642089174287,10.45,152.17,151.99,7.82]
[1642089174588,10.45,152.17,151.92,24.3529]
[1642089174589,9.863,152.13,151.96,8.8799]
[1642089174787,10.45,152.12,151.92,29.5996]
[1642089174986,16.7,152.12,151.91,129.75079458]
[1642089175188,16.7,152.12,151.91,19.49859458]
[1642089175391,18.34999521,152.12,151.92,1.48954874]
[1642089175587,15.40788265,152.11,151.92,1.48954874]
[1642089175786,9.868,152.05,151.92,10.37184874]
[1642089175989,13.91939964,152.04,151.92,10.37184874]
[1642089176390,14.16939964,152.04,151.92,10.37184874]
[1642089176790,14.16939964,152.04,151.91,13.62662034]
[1642089176791,24.03809964,152.04,151.9,8.8833]
[1642089176989,24.03809964,152.04,151.87,7.82]
[1642089177190,2.632,152.03,151.87,7.82]
[1642089177588,3.142,152.03,151.87,7.82]
[1642089177789,2.882,152.03,151.88,21.26399999]
[1642089177994,0.25,152.03,151.88,21.51399999]
[1642089178190,13.91939964,152.04,151.89,7.82]
[1642089179389,13.91939964,152.04,151.93,8.8815]
[1642089179789,14.17939964,152.04,151.93,8.8815]
[1642089179990,14.17939964,152.04,151.89,7.82]
[1642089180193,14.17939964,152.04,151.85,86.9811]
[1642089180194,2.632,152.03,151.85,86.9811]
[1642089180389,2.632,152.03,151.85,92.9811]
[1642089180594,2.882,152.03,151.85,92.9811]
[1642089180792,2.882,152.03,151.87,8.8851]
[1642089180995,0.51,152.03,151.87,16.7051]
[1642089181193,2.632,152.02,151.87,8.8851]
[1642089181397,17.34548936,152.01,151.87,8.8851]
[1642089181592,17.59548936,152.01,151.87,8.8851]
[1642089181796,2.632,152.02,151.87,8.8851]
[1642089181996,9.8696,152.03,151.87,8.8851]
[1642089182197,30.9031,152.05,151.87,8.8851]
[1642089182396,30.9031,152.05,151.87,9.1351]
[1642089182597,63.64,152.04,151.87,9.1351]
[1642089182797,77.50644817,152.04,151.87,9.1351]
[1642089182996,9.8699,152.02,151.87,9.1351]
[1642089183202,14.3466869,152.01,151.88,3.72705918]
[1642089183497,2.632,152.04,151.91,72.523]
[1642089183698,82.0454,152.09,151.91,80.343]
[1642089183897,82.0454,152.09,151.92,1.49051942]
[1642089184098,79.4134,152.09,151.92,21.10519184]
[1642089184298,94.77651596,152.09,151.93,14.50977977]
[1642089184500,95.02651596,152.09,151.98,8.8791]
[1642089184903,95.02651596,152.09,151.98,9.1391]
[1642089185203,95.02651596,152.09,151.93,11.28467242]
[1642089185401,9.8686,152.04,151.92,8.8823]
[1642089185601,2.63,152.03,151.92,8.8823]
[1642089186002,14.2117128,152.02,151.88,37.4276]
[1642089186301,14.2117128,152.02,151.87,14.90057888]
[1642089186502,2.632,152.01,151.87,14.90057888]
[1642089186705,23.0937128,152.02,151.87,14.90057888]
[1642089187302,9.871,152.01,151.88,8.8846]
[1642089187603,0.25,152.01,151.88,8.8846]
[1642089188406,10.1204,152.01,151.88,8.8846]
[1642089188602,14.42233073,151.99,151.88,8.8846]
[1642089189005,14.67233073,151.99,151.88,8.8846]
[1642089189402,20.67233073,151.99,151.88,8.8846]
[1642089189604,10.1221,151.99,151.88,8.8846]
[1642089190006,0.25,151.99,151.88,8.8846]
[1642089190406,2.882,152.0,151.88,8.8846]
[1642089190609,0.25,152.0,151.89,15.40531474]
[1642089190910,2.632,152.02,151.91,8.8834]
[1642089191107,77.0784,152.08,151.91,9.1334]
[1642089191108,2.632,152.05,151.91,9.1334]
[1642089191311,2.63,152.06,151.92,1.48692333]
[1642089191507,79.4134,152.09,151.93,7.82]
[1642089191706,82.0434,152.09,151.93,7.82]
[1642089191906,13.74344841,152.08,151.94,1.40951801]
[1642089192107,2.63,152.07,151.94,9.48951801]
[1642089192307,13.74344841,152.08,151.97,8.8794]
[1642089192630,13.74344841,152.08,151.97,9.1394]
[1642089193231,23.60934841,152.08,151.97,9.1394]
[1642089193831,13.74344841,152.08,151.97,9.1394]
[1642089194331,79.4134,152.09,151.97,9.1394]
[1642089194531,85.4134,152.09,151.97,9.1394]
[1642089195133,111.42558741,152.09,151.97,9.1394]
[1642089195732,95.2786,152.09,151.97,9.1394]
[1642089195935,95.5286,152.09,151.97,9.1394]
[1642089196331,95.2786,152.09,151.97,9.1394]
[1642089196533,14.76584951,152.08,151.97,9.1394]
[1642089196732,85.4134,152.09,151.97,9.1394]
[1642089196932,6.0,152.09,151.97,9.1394]
[1642089197134,6.0,152.09,152.01,8.8772]
[1642089197335,6.0,152.11,152.01,8.8772]
[1642089197633,26.27910405,152.13,152.01,9.1372]
[1642089197834,2.63,152.14,152.01,9.1372]
[1642089198133,2.63,152.16,152.02,65.1269257]
[1642089198335,2.63,152.18,152.07,8.8738]
[1642089198533,6.0,152.18,152.07,9.1338]
[1642089198738,2.629,152.19,152.07,9.1338]
[1642089198934,16.85775619,152.18,152.07,9.1338]
[1642089199735,16.85775619,152.18,152.07,8.8738]
[1642089199935,11.50999521,152.17,152.07,8.8738]
[1642089200140,2.629,152.16,152.07,8.8738]
[1642089200334,16.85775619,152.18,152.07,8.8738]
[1642089201537,2.629,152.17,152.07,8.8738]
[1642089201938,2.629,152.17,152.05,8.8745]
[1642089202138,12.4889,152.17,152.05,8.8745]
[1642089202338,12.4889,152.17,152.05,9.1345]
[1642089202542,18.7389,152.17,152.05,9.1345]
[1642089202738,18.7389,152.17,152.05,8.8745]
[1642089202938,18.7389,152.17,152.05,9.1345]
[1642089202939,18.4889,152.17,152.05,9.1345]
[1642089203539,18.4889,152.17,152.06,1.15421439]
[1642089203740,6.0,152.17,152.06,1.15421439]
[1642089203943,6.0,152.17,152.09,8.8723]
[1642089204138,16.85775619,152.18,152.09,8.8723]
[1642089204339,9.7363,152.2,152.09,9.1323]
[1642089204539,9.7363,152.2,152.09,9.3823]
[1642089204738,10.449,152.29,152.11,63.64]
[1642089204940,2.629,152.29,152.16,8.8682]
[1642089205139,4.53641648,152.3,152.16,72.5082]
[1642089205339,17.00048685,152.29,152.17,13.94304883]
[1642089205539,17.00048685,152.29,152.17,14.45304883]
[1642089205739,4.53641648,152.3,152.17,15.93997453]
[1642089205941,4.53641648,152.3,152.18,7.82]
[1642089206141,9.8506,152.32,152.19,8.8664]
[1642089206342,157.6065,152.35,152.19,8.8664]
[1642089206544,160.9805,152.35,152.19,16.9464]
[1642089206742,20.24363912,152.34,152.19,16.9464]
[1642089206943,53.08313912,152.34,152.19,19.10467242]
[1642089207143,59.08313912,152.34,152.19,7.82]
[1642089207443,17.6694,152.33,152.13,11.28467242]
[1642089207643,2.626,152.32,152.05,10.0068]
[1642089207844,32.4369,152.31,152.06,14.90558869]
[1642089208044,2.628,152.3,152.07,7.82]
[1642089208243,7.82,152.29,152.07,7.82]
[1642089208443,17.01236156,152.27,152.07,80.3717]
[1642089208644,2.628,152.26,152.08,1.4869257]
[1642089208844,2.628,152.26,152.08,9.3069257]
[1642089209047,9.8551,152.25,152.11,8.8707]
[1642089209244,90.84506156,152.27,152.12,9.72924406]
[1642089209444,17.01236156,152.27,152.12,9.72924406]
[1642089209645,2.628,152.34,152.13,76.1627425]
[1642089209845,3.29819891,152.36,152.15,63.64]
[1642089210048,13.14579891,152.36,152.17,8.8673]
[1642089210246,2.626,152.35,152.18,7.82]
[1642089210646,15.50010868,152.34,152.19,14.90558869]
[1642089210848,2.626,152.33,152.19,22.72558869]
[1642089211046,18.4755,152.33,152.19,7.82]
[1642089211247,18.4755,152.33,152.19,8.08]
[1642089212048,18.7255,152.33,152.19,8.08]
[1642089212448,18.9855,152.33,152.19,8.08]
[1642089212848,18.7355,152.33,152.19,8.08]
[1642089213451,18.7355,152.33,152.19,7.82]
[1642089213851,18.7355,152.33,152.19,16.6865]
[1642089214051,18.7255,152.33,152.19,16.6865]
[1642089214652,18.4755,152.33,152.19,16.6865]
[1642089214851,2.626,152.33,152.19,17.1965]
[1642089215053,15.50010868,152.34,152.19,18.6834257]
[1642089215253,15.50010868,152.34,152.19,18.4334257]
[1642089215452,15.50010868,152.34,152.19,18.6834257]
[1642089216055,21.50010868,152.34,152.19,18.4334257]
[1642089216254,15.50010868,152.34,152.19,18.4334257]
[1642089216453,25.34940868,152.34,152.19,18.4334257]
[1642089216856,25.34940868,152.34,152.19,18.6834257]
[1642089217454,25.34940868,152.34,152.19,24.6834257]
[1642089217657,15.50010868,152.34,152.2,63.64]
[1642089217855,15.50010868,152.34,152.25,8.8634]
[1642089218154,32.8305,152.38,152.25,9.1234]
[1642089218155,2.626,152.38,152.25,9.1234]
[1642089218356,2.626,152.4,152.25,9.1234]
[1642089218555,6.0,152.4,152.25,9.1234]
[1642089218756,2.625,152.41,152.26,7.82]
[1642089218956,14.12757089,152.4,152.26,8.08]
[1642089219757,14.12757089,152.4,152.26,7.82]
[1642089219758,23.97307089,152.4,152.26,7.82]
[1642089220058,7.82,152.39,152.2,7.82]
[1642089220259,2.626,152.38,152.2,7.82]
[1642089220460,6.32,152.37,152.17,7.82]
[1642089220661,2.626,152.36,152.18,14.10308936]
[1642089220859,9.8508,152.31,152.19,7.82]
[1642089221059,8.626,152.36,152.2,8.8664]
[1642089221260,8.626,152.36,152.21,7.82]
[1642089221460,6.25,152.36,152.21,8.07]
[1642089221659,6.0,152.36,152.21,9.30946819]
[1642089221864,9.8479,152.36,152.21,9.30946819]
[1642089222060,16.43790668,152.34,152.21,7.82]
[1642089222259,2.626,152.33,152.21,8.08]
[1642089222472,2.626,152.33,152.21,0.26]
[1642089222473,8.626,152.33,152.21,0.26]
[1642089222661,8.626,152.33,152.17,7.82]
[1642089222862,9.8506,152.32,152.17,7.82]
[1642089223063,16.1006,152.32,152.17,7.82]
[1642089223864,16.1006,152.32,152.17,8.07]
[1642089224264,16.3606,152.32,152.2,8.8661]
[1642089224467,2.626,152.31,152.2,8.8661]
[1642089224765,9.8513,152.3,152.2,8.8661]
[1642089224965,10.1013,152.3,152.2,8.8661]
[1642089225566,0.25,152.3,152.2,8.8661]
[1642089226269,0.25,152.32,152.2,8.8661]
[1642089226486,152.94510668,152.34,152.2,9.1261]
[1642089226687,154.97420668,152.34,152.21,7.82]
[1642089226885,152.34820668,152.34,152.25,8.8635]
[1642089227087,32.28700668,152.34,152.25,9.1235]
[1642089227485,15.8491,152.34,152.25,9.1235]
[1642089227684,4.4785018,152.37,152.25,9.1235]
[1642089227886,4.4785018,152.37,152.25,18.43296819]
[1642089227887,1.8525018,152.37,152.25,18.43296819]
[1642089228084,1.8525018,152.37,152.25,16.9435]
[1642089228486,13.6288605,152.37,152.25,16.9435]
[1642089228686,1.8525018,152.38,152.25,16.9435]
[1642089228886,1.8525018,152.38,152.26,65.12946819]
[1642089229088,1.8525018,152.38,152.27,7.82]
[1642089229486,1.8525018,152.4,152.27,8.08]
[1642089229690,19.78039585,152.38,152.27,8.08]
[1642089229886,13.78039585,152.38,152.27,71.72]
[1642089230087,13.78039585,152.38,152.27,79.45946819]
[1642089230288,13.78039585,152.38,152.27,73.20946819]
[1642089230488,13.78039585,152.38,152.27,8.08]
[1642089230987,13.78039585,152.38,152.27,8.33]
[1642089231187,13.78039585,152.38,152.27,82.07176819]
[1642089231387,13.78039585,152.38,152.27,16.9423]
[1642089231587,13.78039585,152.38,152.27,16.6823]
[1642089231789,14.04039585,152.38,152.27,7.82]
[1642089232088,2.625,152.37,152.21,1.48946819]
[1642089232291,13.45501721,152.32,152.2,11.90292596]
[1642089232487,2.626,152.31,152.2,11.90292596]
[1642089232688,2.626,152.31,152.2,1.85482596]
[1642089232887,8.626,152.31,152.2,1.85482596]
[1642089233087,10.27599521,152.31,152.17,3.71855837]
[1642089233288,9.8546,152.26,152.16,1.85482596]
[1642089233489,2.626,152.25,152.16,1.85482596]
[1642089233892,8.876,152.25,152.16,1.85482596]
[1642089234093,72.516,152.25,152.16,1.85482596]
[1642089234390,9.8566,152.22,152.16,1.85482596]
[1642089234592,2.628,152.21,152.16,1.85482596]
[1642089234792,16.1066,152.22,152.16,1.85482596]
[1642089234991,16.1066,152.22,152.12,1.85482596]
[1642089234992,6.25,152.22,152.12,1.85482596]
[1642089235793,9.8575,152.21,152.12,10.72662596]
[1642089235994,20.25675238,152.24,152.12,8.8718]
[1642089236197,2.628,152.26,152.12,8.8718]
[1642089236395,1.8525018,152.27,152.14,63.64]
[1642089236594,1.8525018,152.27,152.15,7.82]
[1642089236793,1.8525018,152.27,152.16,63.64]
[1642089236994,11.7058018,152.27,152.2,8.8673]
[1642089237193,11.7058018,152.27,152.16,1.74946819]
[1642089237194,13.67042955,152.26,152.16,1.74946819]
[1642089237398,13.67042955,152.26,152.17,0.26]
[1642089237693,4.4785018,152.3,152.16,1.74946819]
[1642089237894,1.8525018,152.3,152.18,1.48946819]
[1642089238094,1.8525018,152.3,152.18,1.74946819]
[1642089238495,16.5287991,152.29,152.18,1.99946819]
[1642089238695,16.5287991,152.29,152.19,9.83075654]
[1642089239096,26.3810991,152.29,152.2,8.8676]
[1642089239297,32.3810991,152.29,152.2,8.8676]
[1642089239497,32.3810991,152.29,152.2,9.1276]
[1642089239697,32.3810991,152.29,152.2,18.95835654]
[1642089240302,32.3810991,152.29,152.2,9.1276]
[1642089240701,32.3810991,152.29,152.2,8.8676]
[1642089240903,32.3810991,152.29,152.15,29.5621]
[1642089241100,9.8548,152.25,152.14,1.85482596]
[1642089241307,17.7938,152.25,152.13,1.85482596]
[1642089241505,18.0438,152.25,152.13,1.85482596]
[1642089241702,18.15813817,152.23,152.13,1.85482596]
[1642089242205,18.40813817,152.23,152.13,1.85482596]
[1642089242406,9.8578,152.2,152.09,1.85482596]
[1642089242603,10.1078,152.2,152.09,1.85482596]
[1642089243603,16.1078,152.2,152.06,3.71855837]
[1642089243804,16.1078,152.2,152.05,193.12176686]
[1642089244204,16.1078,152.2,152.11,8.8731]
[1642089246019,10.1078,152.2,152.11,9.1331]
[1642089248308,10.1078,152.2,152.11,8.8731]
[1642089248510,9.8578,152.2,152.11,11.72849907]
[1642089248709,2.628,152.23,152.11,13.47796726]
[1642089248908,1.8525018,152.27,152.11,21.29796726]
[1642089249108,1.8525018,152.27,152.11,21.54796726]
[1642089249309,1.8525018,152.27,152.11,18.69256819]
[1642089249514,1.8525018,152.27,152.11,18.18256819]
[1642089249714,13.82,152.27,152.11,10.36256819]
[1642089249914,9.8537,152.26,152.11,8.8731]
[1642089250117,74.088,152.25,152.1,8.8736]
[1642089250314,16.15808573,152.24,152.08,1.85482596]
[1642089250622,10.448,152.23,152.08,1.85482596]
[1642089251017,16.698,152.23,152.08,1.85482596]
[1642089251214,9.8602,152.18,152.06,1.85482596]
[1642089251516,10.449,152.17,152.06,1.85482596]
[1642089251714,10.449,152.17,151.93,93.9]
[1642089251715,16.253911,152.16,151.93,93.9]
[1642089251918,97.7,152.08,151.92,57.74921433]
[1642089252115,97.7,152.08,151.92,10.55021433]
[1642089252116,97.7,151.99,151.92,10.55021433]
[1642089252314,161.34,151.97,151.87,14.58807024]
[1642089252514,63.64,151.94,151.76,36.91087948]
[1642089252745,46.0,151.92,151.76,36.91087948]
[1642089252940,10.454,151.91,151.86,9.33894776]
[1642089253139,10.454,151.91,151.81,14.94231641]
[1642089253339,9.8814,151.89,151.81,14.94231641]
[1642089253539,9.8814,151.89,151.76,22.41347462]
[1642089253540,7.82,151.88,151.76,22.41347462]
[1642089253740,10.454,151.88,151.76,22.41347462]
[1642089253940,16.704,151.88,151.76,22.41347462]
[1642089254146,7.82,151.88,151.76,22.41347462]
[1642089254540,7.82,151.88,151.77,17.90895654]
[1642089255741,14.07,151.88,151.77,17.90895654]
[1642089255944,2.634,151.87,151.77,17.90895654]
[1642089256142,7.82,151.86,151.77,17.90895654]
[1642089256342,2.634,151.85,151.77,17.90895654]
[1642089256542,2.634,151.94,151.77,17.90895654]
[1642089256741,17.82,151.93,151.77,17.90895654]
[1642089256945,7.82,151.93,151.77,17.90895654]
[1642089257341,7.82,151.93,151.77,18.15895654]
[1642089257543,24.72887026,151.92,151.77,27.78685654]
[1642089258142,30.72887026,151.92,151.77,27.78685654]
[1642089258345,24.98887026,151.92,151.77,27.78685654]
[1642089258544,30.98887026,151.92,151.77,27.78685654]
[1642089259143,33.62287026,151.92,151.77,27.78685654]
[1642089259544,33.87287026,151.92,151.77,28.03685654]
[1642089259747,19.0211,151.92,151.77,28.03685654]
[1642089259947,18.7611,151.92,151.77,28.03685654]
[1642089260153,15.8771,151.92,151.77,27.78685654]
[1642089260347,7.82,151.93,151.77,27.78685654]
[1642089260549,7.82,151.97,151.78,63.95130792]
[1642089260747,21.34899553,152.0,151.87,9.8709]
[1642089260948,21.34899553,152.0,151.88,16.1034269]
[1642089261448,4.28199521,151.99,151.88,16.1034269]
[1642089261647,7.82,151.98,151.73,80.9754]
[1642089261848,2.634,151.97,151.73,80.9754]
[1642089262047,7.82,151.96,151.73,80.9754]
[1642089262246,35.5571,151.95,151.79,9.8772]
[1642089262446,7.82,151.94,151.79,9.8772]
[1642089262647,7.82,151.94,151.8,13.3419489]
[1642089262847,2.633,151.93,151.8,13.3419489]
[1642089263052,10.453,151.93,151.8,13.6019489]
[1642089263248,10.453,152.02,151.8,85.0619489]
[1642089263449,7.82,152.02,151.85,9.8739]
[1642089263647,2.632,152.01,151.85,9.8739]
[1642089263948,14.82862966,152.0,151.86,16.4268615]
[1642089264347,28.64862966,152.0,151.86,16.6868615]
[1642089264548,28.64862966,152.0,151.86,26.5599615]
[1642089264748,2.632,151.99,151.86,16.4268615]
[1642089264949,12.99635871,151.97,151.86,16.4268615]
[1642089265149,10.453,151.96,151.76,145.2596]
[1642089265349,9.8759,151.93,151.76,151.2596]
[1642089265554,9.8759,151.93,151.78,9.878]
[1642089265750,12.5099,151.93,151.78,9.878]
[1642089265950,7.82,151.92,151.78,15.878]
[1642089266152,13.82,151.92,151.79,17.4817227]
[1642089266352,16.81256089,151.89,151.79,17.4817227]
[1642089266551,17.06256089,151.89,151.79,17.4817227]
[1642089266751,17.06256089,151.89,151.74,23.3911]
[1642089266752,32.9377,151.88,151.74,23.3911]
[1642089266952,43.3917,151.88,151.74,23.3911]
[1642089267152,49.6417,151.88,151.74,23.3911]
[1642089267551,9.8813,151.84,151.74,23.3911]
[1642089267951,16.1313,151.84,151.75,14.15769132]
[1642089268158,18.7653,151.84,151.75,14.15769132]
[1642089268354,8.884,151.84,151.75,14.15769132]
[1642089268556,6.25,151.84,151.75,14.15769132]
[1642089268755,0.25,151.84,151.75,14.15769132]
[1642089268955,0.25,151.86,151.75,24.03819132]
[1642089269360,26.32102682,151.87,151.75,24.03819132]
[1642089269564,23.68702682,151.87,151.75,24.03819132]
[1642089269759,6.25,151.87,151.75,24.03819132]
[1642089269957,0.25,151.87,151.75,24.03819132]
[1642089270158,6.25,151.87,151.75,24.03819132]
[1642089270358,7.82,151.9,151.75,25.53593535]
[1642089270559,7.82,151.9,151.75,25.78593535]
[1642089270760,7.82,151.9,151.75,26.04593535]
[1642089271961,26.19414322,151.94,151.75,33.86593535]
[1642089272161,10.454,151.94,151.75,97.50593535]
[1642089272365,22.601,151.99,151.75,97.50593535]
[1642089272366,2.634,151.97,151.78,0.313254]
[1642089272560,7.82,152.0,151.87,9.8724]
[1642089272961,9.872,151.98,151.79,1.49774403]
[1642089273162,9.872,151.98,151.82,13.36050021]
[1642089273163,17.16469609,151.97,151.82,13.36050021]
[1642089273372,7.82,151.96,151.82,13.36050021]